fUST/lending_fUST_20260622
["ID","MTS","AMOUNT","RATE_DAILY","PERIOD"]
[426039185,1782129065000,-484.9,0.00021918,2]
[426039170,1782129065000,-151.0,0.00021918,2]
[426039173,1782129065000,-2392.005002,0.00021918,2]
[426039172,1782129065000,-160.694566,0.00021918,2]
[426039193,1782129065000,-484.9,0.00021918,2]
[426039147,1782129065000,-992.623755,0.00021918,2]
[426039150,1782129065000,-492.45,0.00021918,2]
[426039148,1782129065000,-658.869444,0.00021918,2]
[426039149,1782129065000,-992.623755,0.00021918,2]
[426039151,1782129065000,-658.869444,0.00021918,2]
[426039152,1782129065000,-492.45,0.00021918,2]
[426039154,1782129065000,-992.623755,0.00021918,2]
[426039155,1782129065000,-658.869444,0.00021918,2]
[426039153,1782129065000,-449.728044,0.00021918,2]
[426039156,1782129065000,-449.728041,0.00021918,2]
[426039165,1782129065000,-492.45,0.00021918,2]
[426039160,1782129065000,-492.45,0.00021918,2]
[426039163,1782129065000,-492.45,0.00021918,2]
[426039157,1782129065000,-992.623746,0.00021918,2]
[426039158,1782129065000,-492.45,0.00021918,2]
[426039159,1782129065000,-658.869444,0.00021918,2]
[426039161,1782129065000,-658.869442,0.00021918,2]
[426039162,1782129065000,-492.45,0.00021918,2]
[426039168,1782129065000,-2392.005002,0.00021918,2]
[426039166,1782129065000,-151.0,0.00021918,2]
[426039174,1782129065000,-2392.005002,0.00021918,2]
[426039167,1782129065000,-151.0,0.00021918,2]
[426039177,1782129065000,-2392.005002,0.00021918,2]
[426039164,1782129065000,-492.45,0.00021918,2]
[426039201,1782129065000,-378.792861,0.00021918,2]
[426039199,1782129065000,-378.792861,0.00021918,2]
[426039229,1782129065000,-157.495622,0.00021918,2]
[426039228,1782129065000,-157.495622,0.00021918,2]
[426039231,1782129065000,-157.495612,0.00021918,2]
[426039232,1782129065000,-321.210024,0.00021918,2]
[426039230,1782129065000,-321.210024,0.00021918,2]
[426039233,1782129065000,-321.210024,0.00021918,2]
[426039235,1782129065000,-321.210024,0.00021918,2]
[426039236,1782129065000,-321.210024,0.00021918,2]
[426039234,1782129065000,-321.210024,0.00021918,2]
[426039238,1782129065000,-321.210026,0.00021918,2]
[426039226,1782129065000,-157.495622,0.00021918,2]
[426039237,1782129065000,-321.210024,0.00021918,2]
[426039243,1782129065000,-15185.28836854,0.00022,2]
[426039245,1782129065000,-167.0,0.00022,10]
[426039242,1782129065000,-8000.20751732,0.00022,2]
[426039240,1782129065000,-1500000.0,0.00021945,30]
[426039244,1782129065000,-1500.0,0.00022,2]
[426039247,1782129065000,-579.51542567,0.00022,14]
[426039249,1782129065000,-179.16842417,0.00022,20]
[426039248,1782129065000,-500.0,0.00022,2]
[426039246,1782129065000,-99266.8761449,0.00022,2]
[426039195,1782129065000,-519.494534,0.00021918,2]
[426039241,1782129065000,-580.43001291,0.0002196,10]
[426039225,1782129065000,-157.495622,0.00021918,2]
[426039239,1782129065000,-836.575357,0.00021945,30]
[426039224,1782129065000,-157.495622,0.00021918,2]
[426039196,1782129065000,-519.494536,0.00021918,2]
[426039223,1782129065000,-157.495622,0.00021918,2]
[426039198,1782129065000,-151.0,0.00021918,2]
[426039194,1782129065000,-484.9,0.00021918,2]
[426039197,1782129065000,-151.0,0.00021918,2]
[426039206,1782129065000,-3617.189466,0.00021918,2]
[426039205,1782129065000,-3617.189466,0.00021918,2]
[426039210,1782129065000,-3617.189466,0.00021918,2]
[426039213,1782129065000,-3617.189466,0.00021918,2]
[426039209,1782129065000,-3617.189466,0.00021918,2]
[426039208,1782129065000,-378.792863,0.00021918,2]
[426039207,1782129065000,-378.792861,0.00021918,2]
[426039219,1782129065000,-273.529929,0.00021918,2]
[426039212,1782129065000,-3617.189466,0.00021918,2]
[426039215,1782129065000,-273.529929,0.00021918,2]
[426039214,1782129065000,-3617.189457,0.00021918,2]
[426039216,1782129065000,-273.529929,0.00021918,2]
[426039227,1782129065000,-157.495622,0.00021918,2]
[426039218,1782129065000,-273.529929,0.00021918,2]
[426039217,1782129065000,-273.529929,0.00021918,2]
[426039220,1782129065000,-273.529929,0.00021918,2]
[426039222,1782129065000,-273.529932,0.00021918,2]
[426039221,1782129065000,-273.529929,0.00021918,2]
[426039211,1782129065000,-3617.189466,0.00021918,2]
[426039310,1782129066000,-520.17,0.00022569,7]
[426039280,1782129066000,-802.67939089,0.00022263,2]
[426039283,1782129066000,-1512.395,0.000223,2]
[426039292,1782129066000,-959.97,0.00022465,2]
[426039293,1782129066000,-610.51,0.00022465,2]
[426039287,1782129066000,-1500.0,0.00022366,2]
[426039286,1782129066000,-1500.0,0.00022366,2]
[426039284,1782129066000,-1512.39,0.000223,2]
[426039281,1782129066000,-244.1191286,0.00022283,2]
[426039285,1782129066000,-1000.0,0.000223,2]
[426039291,1782129066000,-328.78965069,0.00022465,2]
[426039282,1782129066000,-162.51929348,0.00022293,2]
[426039297,1782129066000,-736.03,0.00022465,2]
[426039303,1782129066000,-6661.95,0.00022466,2]
[426039298,1782129066000,-1149.17,0.00022465,2]
[426039301,1782129066000,-627.65,0.00022465,2]
[426039295,1782129066000,-577.74,0.00022465,2]
[426039299,1782129066000,-1000.0,0.00022465,2]
[426039300,1782129066000,-4838.66,0.00022465,2]
[426039294,1782129066000,-528.5,0.00022465,2]
[426039296,1782129066000,-611.73,0.00022465,2]
[426039304,1782129066000,-1046.74923731,0.000225,2]
[426039312,1782129066000,-33764.268825,0.000226,2]
[426039306,1782129066000,-232.0,0.00022521,7]
[426039305,1782129066000,-2000.0,0.000225,7]
[426039288,1782129066000,-1000.0,0.00022399,10]
[426039302,1782129066000,-794.59,0.00022465,2]
[426039279,1782129066000,-840.39022354,0.00022263,2]
[426039250,1782129066000,-175.58941844,0.00022,10]
[426039277,1782129066000,-4371.57333685,0.000222,2]
[426039252,1782129066000,-999.999999,0.00022,3]
[426039253,1782129066000,-160.0,0.00022,30]
[426039254,1782129066000,-1033.24527489,0.00022,2]
[426039251,1782129066000,-845.0,0.00022,15]
[426039264,1782129066000,-500.0,0.00022191,2]
[426039255,1782129066000,-2637.40702893,0.00022015,2]
[426039263,1782129066000,-152.0,0.00022117,2]
[426039261,1782129066000,-152.0,0.00022117,2]
[426039260,1782129066000,-213.06268953,0.00022117,2]
[426039256,1782129066000,-2054253.8434,0.00022015,7]
[426039262,1782129066000,-152.0,0.00022117,2]
[426039259,1782129066000,-417.15472785,0.000221,7]
[426039257,1782129066000,-162.51929348,0.00022019,2]
[426039258,1782129066000,-200.06,0.000221,2]
[426039271,1782129066000,-1149.17,0.00022191,2]
[426039267,1782129066000,-528.5,0.00022191,2]
[426039265,1782129066000,-959.97,0.00022191,2]
[426039270,1782129066000,-736.03,0.00022191,2]
[426039269,1782129066000,-611.73,0.00022191,2]
[426039276,1782129066000,-6661.95,0.00022192,2]
[426039275,1782129066000,-794.59,0.00022191,2]
[426039272,1782129066000,-1000.0,0.00022191,2]
[426039273,1782129066000,-4838.66,0.00022191,2]
[426039268,1782129066000,-577.74,0.00022191,2]
[426039266,1782129066000,-610.51,0.00022191,2]
[426039274,1782129066000,-627.65,0.00022191,2]
[426039278,1782129066000,-362.16,0.00022238,7]
[426039289,1782129066000,-244.0,0.00022399,10]
[426039311,1782129066000,-430.19,0.00022595,7]
[426039290,1782129066000,-10826.49144944,0.00022407,7]
[426039314,1782129066000,-484.51,0.00022605,7]
[426039344,1782129066000,-462.283,0.00022822,2]
[426039342,1782129066000,-157.86,0.00022816,7]
[426039349,1782129066000,-162.51929348,0.00022841,2]
[426039345,1782129066000,-1500.0,0.00022822,2]
[426039347,1782129066000,-1500.0,0.00022822,2]
[426039352,1782129066000,-2052.0,0.00022921,7]
[426039351,1782129066000,-300.0,0.000229,2]
[426039348,1782129066000,-1500.302711,0.00022822,2]
[426039350,1782129066000,-2052.0,0.00022871,7]
[426039346,1782129066000,-1500.0,0.00022822,2]
[426039365,1782129066000,-186.95,0.00022989,7]
[426039354,1782129066000,-210.12,0.00022924,7]
[426039353,1782129066000,-152.81,0.00022924,7]
[426039357,1782129066000,-295.04,0.00022952,7]
[426039364,1782129066000,-256.74,0.00022989,7]
[426039360,1782129066000,-152.81,0.00022974,7]
[426039358,1782129066000,-319.726443,0.00022957,14]
[426039356,1782129066000,-488.2382572,0.00022935,2]
[426039355,1782129066000,-201.2,0.00022932,7]
[426039361,1782129066000,-209.12,0.00022974,7]
[426039363,1782129066000,-171.82,0.00022989,7]
[426039359,1782129066000,-2052.0,0.00022971,7]
[426039362,1782129066000,-164.5,0.0002298,7]
[426039366,1782129066000,-286.5683799,0.00023,2]
[426039369,1782129066000,-1282.0,0.00023,5]
[426039368,1782129066000,-291.00439887,0.00023,3]
[426039313,1782129066000,-1942.03,0.00022605,7]
[426039341,1782129066000,-1000.0,0.000228,2]
[426039343,1782129066000,-2052.0,0.00022821,7]
[426039367,1782129066000,-259.65,0.00023,2]
[426039335,1782129066000,-794.59432816,0.00022739,2]
[426039340,1782129066000,-1008.46826825,0.00022782,2]
[426039307,1782129066000,-519.9,0.00022525,7]
[426039309,1782129066000,-162.51929348,0.00022567,2]
[426039315,1782129066000,-2204.67,0.00022617,7]
[426039317,1782129066000,-3468.33,0.00022636,7]
[426039318,1782129066000,-866.08,0.00022636,7]
[426039321,1782129066000,-156.84,0.00022666,7]
[426039320,1782129066000,-157.84,0.00022666,7]
[426039319,1782129066000,-430.19,0.00022637,7]
[426039316,1782129066000,-10762.24,0.00022621,7]
[426039323,1782129066000,-157.84,0.00022716,7]
[426039324,1782129066000,-2052.0,0.00022721,7]
[426039326,1782129066000,-610.68,0.00022739,2]
[426039308,1782129066000,-430.2,0.00022546,7]
[426039322,1782129066000,-2052.0,0.00022671,7]
[426039336,1782129066000,-6661.95,0.0002274,2]
[426039333,1782129066000,-4838.76465835,0.00022739,2]
[426039334,1782129066000,-627.72,0.00022739,2]
[426039337,1782129066000,-170.520769,0.00022761,14]
[426039325,1782129066000,-960.03689356,0.00022739,2]
[426039330,1782129066000,-736.03331913,0.00022739,2]
[426039332,1782129066000,-1000.0,0.00022739,2]
[426039331,1782129066000,-1149.23,0.00022739,2]
[426039328,1782129066000,-577.86743895,0.00022739,2]
[426039339,1782129066000,-2052.0,0.00022771,7]
[426039338,1782129066000,-157.84,0.00022766,7]
[426039327,1782129066000,-528.5,0.00022739,2]
[426039329,1782129066000,-611.95,0.00022739,2]
[426039402,1782129067000,-300.0,0.00023073,2]
[426039413,1782129067000,-159.32,0.0002308,7]
[426039405,1782129067000,-300.0,0.00023073,2]
[426039406,1782129067000,-300.0,0.00023073,2]
[426039397,1782129067000,-186.95,0.00023039,7]
[426039408,1782129067000,-300.0,0.00023073,2]
[426039407,1782129067000,-300.0,0.00023073,2]
[426039414,1782129067000,-168.26,0.0002308,7]
[426039403,1782129067000,-300.0,0.00023073,2]
[426039399,1782129067000,-2052.0,0.00023071,7]
[426039404,1782129067000,-300.0,0.00023073,2]
[426039409,1782129067000,-284.0,0.00023073,2]
[426039424,1782129067000,-200.130101,0.00023111,14]
[426039412,1782129067000,-152.81,0.00023074,7]
[426039411,1782129067000,-228.0,0.00023073,2]
[426039415,1782129067000,-152.13,0.00023081,7]
[426039417,1782129067000,-191.95,0.00023084,7]
[426039418,1782129067000,-205.21,0.00023084,7]
[426039422,1782129067000,-188.0,0.00023101,2]
[426039419,1782129067000,-171.82,0.00023089,7]
[426039425,1782129067000,-92780.33639556,0.00023115,2]
[426039416,1782129067000,-163.91,0.00023083,7]
[426039420,1782129067000,-186.96,0.00023089,7]
[426039421,1782129067000,-253.33,0.00023095,7]
[426039400,1782129067000,-300.0,0.00023073,2]
[426039427,1782129067000,-6397.41085413,0.00023115,2]
[426039410,1782129067000,-282.0,0.00023073,2]
[426039401,1782129067000,-300.0,0.00023073,2]
[426039382,1782129067000,-1000.0,0.00023013,2]
[426039391,1782129067000,-158.3,0.00023031,7]
[426039423,1782129067000,-264.193227,0.00023111,14]
[426039376,1782129067000,-200.0,0.00023,21]
[426039375,1782129067000,-1000.0,0.00023,20]
[426039372,1782129067000,-692.82694461,0.00023,2]
[426039370,1782129067000,-4584.46115711,0.00023,10]
[426039371,1782129067000,-500.0,0.00023,5]
[426039373,1782129067000,-1282.679999,0.00023,7]
[426039374,1782129067000,-158.0,0.00023,3]
[426039387,1782129067000,-165.12,0.00023022,7]
[426039378,1782129067000,-638.63389235,0.00023,5]
[426039380,1782129067000,-500.0,0.00023011,2]
[426039389,1782129067000,-159.32,0.0002303,7]
[426039398,1782129067000,-250.0,0.00023048,2]
[426039388,1782129067000,-152.81,0.00023024,7]
[426039379,1782129067000,-1033.0,0.00023,2]
[426039383,1782129067000,-6661.95,0.00023014,2]
[426039385,1782129067000,-158.3,0.00023016,7]
[426039386,1782129067000,-2052.0,0.00023021,7]
[426039384,1782129067000,-1399.25608114,0.00023015,2]
[426039381,1782129067000,-250.0,0.00023011,2]
[426039390,1782129067000,-277.81,0.0002303,7]
[426039392,1782129067000,-152.13,0.00023031,7]
[426039393,1782129067000,-189.21,0.00023031,7]
[426039394,1782129067000,-152.0,0.00023039,2]
[426039396,1782129067000,-171.82,0.00023039,7]
[426039395,1782129067000,-152.0,0.00023039,2]
[426039377,1782129067000,-417.15472785,0.00023,10]
[426039426,1782129067000,-52541.69770994,0.00023115,2]
[426039438,1782129067000,-160.06796897,0.00023115,2]
[426039428,1782129067000,-58189.31211526,0.00023115,2]
[426039462,1782129067000,-3984.96378488,0.00023115,2]
[426039469,1782129067000,-199.95730621,0.00023115,2]
[426039472,1782129067000,-1271.8083037,0.00023115,5]
[426039470,1782129067000,-600000.0,0.00023115,2]
[426039471,1782129067000,-50294.17380148,0.00023115,2]
[426039464,1782129067000,-339.20566399,0.00023115,5]
[426039463,1782129067000,-769998.499999,0.00023115,2]
[426039461,1782129067000,-3828.93890762,0.00023115,2]
[426039468,1782129067000,-751.15959764,0.00023115,2]
[426039467,1782129067000,-9420.67083487,0.00023115,2]
[426039466,1782129067000,-1257.38679145,0.00023115,2]
[426039465,1782129067000,-5000.0,0.00023115,2]
[426039476,1782129067000,-500.0,0.00023115,7]
[426039473,1782129067000,-4871.66643874,0.00023115,2]
[426039429,1782129067000,-801019.87173442,0.00023115,2]
[426039485,1782129067000,-457.9711583,0.00023115,2]
[426039475,1782129067000,-2256.85993548,0.00023115,2]
[426039474,1782129067000,-1618.6684632,0.00023115,2]
[426039483,1782129067000,-458.1112566,0.00023115,2]
[426039480,1782129067000,-282.2850168,0.00023115,2]
[426039479,1782129067000,-457.5655855,0.00023115,2]
[426039478,1782129067000,-327.0061742,0.00023115,2]
[426039484,1782129067000,-327.0061742,0.00023115,2]
[426039482,1782129067000,-458.1112566,0.00023115,2]
[426039481,1782129067000,-327.0061742,0.00023115,2]
[426039487,1782129067000,-458.1112566,0.00023115,2]
[426039486,1782129067000,-326.8169527,0.00023115,2]
[426039457,1782129067000,-295.44285973,0.00023115,2]
[426039459,1782129067000,-4127.0687965,0.00023115,2]
[426039477,1782129067000,-462.0887658,0.00023115,2]
[426039458,1782129067000,-162.40020066,0.00023115,2]
[426039455,1782129067000,-1300.0,0.00023115,2]
[426039430,1782129067000,-300.0,0.00023115,2]
[426039431,1782129067000,-823.13992133,0.00023115,2]
[426039433,1782129067000,-296.55052164,0.00023115,2]
[426039432,1782129067000,-332.27837839,0.00023115,2]
[426039435,1782129067000,-1383.61427297,0.00023115,2]
[426039434,1782129067000,-647.42970165,0.00023115,2]
[426039447,1782129067000,-204.54680916,0.00023115,2]
[426039439,1782129067000,-590.66360921,0.00023115,2]
[426039440,1782129067000,-515.7287767,0.00023115,2]
[426039436,1782129067000,-159.09158217,0.00023115,2]
[426039441,1782129067000,-475.35979826,0.00023115,2]
[426039443,1782129067000,-1214.33371711,0.00023115,2]
[426039437,1782129067000,-713.78303075,0.00023115,2]
[426039446,1782129067000,-2920.0,0.00023115,2]
[426039452,1782129067000,-328.90060753,0.00023115,2]
[426039442,1782129067000,-192.1703911,0.00023115,2]
[426039460,1782129067000,-4500.0,0.00023115,2]
[426039454,1782129067000,-1060.14023453,0.00023115,2]
[426039453,1782129067000,-160.0,0.00023115,2]
[426039449,1782129067000,-152.72706231,0.00023115,2]
[426039451,1782129067000,-679.99943447,0.00023115,2]
[426039450,1782129067000,-262.71654288,0.00023115,2]
[426039448,1782129067000,-3198.88020018,0.00023115,2]
[426039444,1782129067000,-1419.37961187,0.00023115,2]
[426039445,1782129067000,-661.65566311,0.00023115,2]
[426039456,1782129067000,-601.46101095,0.00023115,2]
[426039510,1782129068000,-163.91,0.00023133,7]
[426039523,1782129068000,-163.93,0.00023183,7]
[426039506,1782129068000,-200.0,0.0002313,2]
[426039504,1782129068000,-152.81,0.00023124,7]
[426039508,1782129068000,-164.29070022,0.0002313,2]
[426039512,1782129068000,-171.82,0.00023139,7]
[426039511,1782129068000,-191.95,0.00023134,7]
[426039515,1782129068000,-218.954,0.00023153,2]
[426039514,1782129068000,-1119.603,0.00023153,2]
[426039518,1782129068000,-164.15997672,0.0002316,2]
[426039519,1782129068000,-2052.0,0.00023171,7]
[426039521,1782129068000,-159.32,0.0002318,7]
[426039507,1782129068000,-164.19747412,0.0002313,2]
[426039516,1782129068000,-157.6981156,0.0002316,2]
[426039513,1782129068000,-958.0,0.00023153,2]
[426039505,1782129068000,-159.32,0.0002313,7]
[426039490,1782129068000,-313.828692,0.00023115,10]
[426039502,1782129068000,-162.51929348,0.00023115,2]
[426039520,1782129068000,-152.81,0.00023174,7]
[426039497,1782129068000,-156.81,0.00023115,2]
[426039488,1782129068000,-458.1112566,0.00023115,2]
[426039498,1782129068000,-156.81,0.00023115,2]
[426039489,1782129068000,-327.0061742,0.00023115,2]
[426039493,1782129068000,-156.81,0.00023115,2]
[426039496,1782129068000,-156.81,0.00023115,2]
[426039495,1782129068000,-156.81,0.00023115,2]
[426039492,1782129068000,-156.81,0.00023115,2]
[426039494,1782129068000,-156.81,0.00023115,2]
[426039491,1782129068000,-156.77,0.00023115,2]
[426039499,1782129068000,-912.23522305,0.00023115,2]
[426039500,1782129068000,-325.8596428,0.00023115,2]
[426039503,1782129068000,-2052.0,0.00023121,7]
[426039501,1782129068000,-326.9485734,0.00023115,2]
[426039509,1782129068000,-152.13,0.00023131,7]
[426039517,1782129068000,-165.485006,0.0002316,2]
[426039522,1782129068000,-152.13,0.00023181,7]
[426039531,1782129068000,-151.57123287,0.00023241,2]
[426039542,1782129068000,-757.80189713,0.00023288,2]
[426039546,1782129068000,-798.7096,0.000233,2]
[426039544,1782129068000,-161.57627669,0.00023288,2]
[426039545,1782129068000,-564.9185,0.000233,2]
[426039547,1782129068000,-1018.62,0.000233,2]
[426039549,1782129068000,-2052.0,0.00023321,7]
[426039551,1782129068000,-159.32,0.0002333,7]
[426039550,1782129068000,-152.81,0.00023324,7]
[426039552,1782129068000,-169.69781057,0.00023337,3]
[426039553,1782129068000,-2052.0,0.00023371,7]
[426039555,1782129068000,-362.16,0.00023409,7]
[426039557,1782129068000,-2052.0,0.00023421,7]
[426039554,1782129068000,-152.81,0.00023374,7]
[426039558,1782129068000,-152.85,0.00023424,7]
[426039559,1782129068000,-225532.37068687,0.00023444,2]
[426039543,1782129068000,-6661.95,0.00023288,2]
[426039541,1782129068000,-568.35142285,0.00023288,2]
[426039556,1782129068000,-782.27662137,0.00023415,120]
[426039539,1782129068000,-189.45047428,0.00023288,2]
[426039540,1782129068000,-378.90094857,0.00023288,2]
[426039534,1782129068000,-159.32,0.0002328,7]
[426039525,1782129068000,-41393.90961415,0.000232,3]
[426039527,1782129068000,-152.81,0.00023224,7]
[426039529,1782129068000,-152.15,0.00023231,7]
[426039530,1782129068000,-171.85,0.00023239,7]
[426039528,1782129068000,-159.32,0.0002323,7]
[426039532,1782129068000,-2052.0,0.00023271,7]
[426039524,1782129068000,-171.82,0.00023189,7]
[426039526,1782129068000,-2052.0,0.00023221,7]
[426039536,1782129068000,-1000.0,0.00023287,2]
[426039560,1782129068000,-900.63,0.00023444,2]
[426039535,1782129068000,-732.3573858,0.00023285,2]
[426039548,1782129068000,-307.79,0.000233,2]
[426039538,1782129068000,-155.78740391,0.00023288,2]
[426039537,1782129068000,-500.0,0.00023288,2]
[426039533,1782129068000,-152.81,0.00023274,7]
[426039566,1782129377000,159.0,0.0002,120]
[426039567,1782129378000,159.0,0.000231,120]
[426039573,1782129459000,4375.59723782,0.0001,2]
[426039572,1782129459000,4900.0,0.0001,2]
[426039576,1782129498000,159.0,0.0002,120]
[426039577,1782129499000,159.0,0.000231,120]
[426039587,1782129519000,168.0,0.00023115,120]
[426039588,1782129542000,176.01223981,0.00023157,120]
[426039589,1782129542000,176.01223981,0.00023285,120]
[426039595,1782129618000,153.0,0.0002,120]
[426039596,1782129619000,153.0,0.000231,120]
[426039599,1782129625000,163.36248775,0.0002302,120]
[426039598,1782129625000,156.10915148,0.0002302,110]
[426039597,1782129625000,163.36248775,0.0002302,120]
[426039602,1782129626000,163.36248775,0.0002302,120]
[426039601,1782129626000,163.36248775,0.0002302,120]
[426039600,1782129626000,163.36248775,0.0002302,120]
[426039604,1782129627000,163.36248775,0.0002302,120]
[426039603,1782129627000,163.36248775,0.0002302,120]
[426039606,1782129669000,500.0,0.00010959,30]
[426039608,1782129670000,500.0,0.00010959,30]
[426039607,1782129670000,500.0,0.00010959,30]
[426039609,1782129671000,500.0,0.00010959,30]
[426039610,1782129671000,500.0,0.00010959,30]
[426039611,1782129671000,500.0,0.00010959,30]
[426039612,1782129672000,563.94872897,0.00010959,30]
[426039640,1782129721000,-151.0,0.00011385,13]
[426039641,1782129722000,-151.0,0.00011385,13]
[426039642,1782129723000,-151.0,0.00011385,13]
[426039643,1782129725000,-151.0,0.00011385,13]
[426039645,1782129744000,163.36248772,0.00022879,120]
[426039648,1782129760000,-151.0,0.00011385,13]
[426039649,1782129761000,-151.0,0.00011385,13]
[426039650,1782129762000,-151.0,0.00011385,13]
[426039651,1782129763000,-151.0,0.00011385,13]
[426039654,1782129774000,-151.0,0.00011385,13]
[426039687,1782129837000,177.94604348,0.0002302,120]
[426039689,1782129876000,161.22634762,0.0002302,120]
[426039694,1782129923000,183.67533369,0.00022879,120]
[426039698,1782129970000,168.78107941,0.00022879,120]
[426039708,1782130079000,1165.80345025,0.00011,13]
[426039710,1782130087000,518.0,0.00022879,120]
[426039712,1782130091000,527.99,0.00023241,120]
[426039713,1782130097000,151.0,0.0002,120]
[426039714,1782130099000,151.0,0.000219,120]
[426039715,1782130100000,396.11485828,0.00011,13]
[426039718,1782130104000,156.37189907,0.0002288,120]
[426039719,1782130105000,176.38914374,0.0002288,120]
[426039720,1782130105000,197.50567183,0.0002288,110]
[426039722,1782130105000,156.37189907,0.0002288,120]
[426039721,1782130105000,194.27147184,0.0002288,120]
[426039724,1782130105000,197.50567183,0.0002288,110]
[426039725,1782130105000,156.37189907,0.0002288,120]
[426039726,1782130105000,197.50567183,0.0002288,110]
[426039727,1782130105000,156.37189907,0.0002288,120]
[426039723,1782130105000,176.38914374,0.0002288,120]
[426039731,1782130106000,156.37189907,0.0002288,120]
[426039730,1782130106000,156.37189907,0.0002288,120]
[426039729,1782130106000,156.37189907,0.0002288,120]
[426039728,1782130106000,518.0,7.17e-05,2]
[426039732,1782130107000,518.0,8.17e-05,2]
[426039733,1782130108000,518.0,9.17e-05,2]
[426039734,1782130110000,-306.29,0.0001017,2]
[426039735,1782130119000,342.41208684,0.0002288,30]
[426039736,1782130119000,249.0,0.00023288,120]
[426039738,1782130142000,382.05284429,0.00023143,120]
[426039739,1782130150000,190.0,0.0002,120]
[426039740,1782130155000,1167.38344258,0.0002288,120]
[426039771,1782130200000,155.0,7.17e-05,2]
[426039772,1782130201000,155.0,8.17e-05,2]
[426039773,1782130202000,155.42992337,9.17e-05,2]
[426039775,1782130209000,202.65110666,9.17e-05,2]
[426039774,1782130209000,202.65110666,9.17e-05,2]
[426039776,1782130215000,5000.0,0.00011,13]
[426039780,1782130224000,211.95868236,0.0002288,30]
[426039779,1782130224000,154.09253347,0.0002288,120]
[426039778,1782130224000,195.58351367,0.0002288,110]
[426039777,1782130224000,244.7558705,0.0002288,120]
[426039781,1782130225000,1026.8961457,0.0002288,120]
[426039782,1782130225000,151.0,0.0002,120]
[426039784,1782130225000,244.7558705,0.0002288,120]
[426039783,1782130225000,154.09253347,0.0002288,120]
[426039785,1782130225000,1026.8961457,0.0002288,120]
[426039787,1782130225000,244.7558705,0.0002288,120]
[426039786,1782130225000,195.58351367,0.0002288,110]
[426039790,1782130225000,244.7558705,0.0002288,120]
[426039789,1782130225000,195.58351367,0.0002288,110]
[426039791,1782130225000,154.09253347,0.0002288,120]
[426039792,1782130225000,1026.8961457,0.0002288,120]
[426039788,1782130225000,154.09253347,0.0002288,120]
[426039793,1782130226000,244.7558705,0.0002288,120]
[426039794,1782130226000,195.58351367,0.0002288,110]
[426039796,1782130226000,1026.8961457,0.0002288,120]
[426039795,1782130226000,154.09253347,0.0002288,120]
[426039797,1782130226000,151.0,0.000208,120]
[426039798,1782130226000,195.58351367,0.0002288,110]
[426039800,1782130226000,154.09253347,0.0002288,120]
[426039799,1782130226000,244.7558705,0.0002288,120]
[426039801,1782130226000,1026.8961457,0.0002288,120]
[426039802,1782130226000,244.7558705,0.0002288,120]
[426039806,1782130227000,1026.8961457,0.0002288,120]
[426039805,1782130227000,195.58351367,0.0002288,110]
[426039804,1782130227000,1026.8961457,0.0002288,120]
[426039803,1782130227000,1026.8961457,0.0002288,120]
[426039808,1782130228000,195.58351367,0.0002288,110]
[426039807,1782130228000,151.0,0.000215,120]
[426039811,1782130228000,1026.8961457,0.0002288,120]
[426039810,1782130228000,1026.8961457,0.0002288,120]